Cogmind - Beta 11.1 @@@ ROGUE MODE // 2022.06.29 @ 17:39:24 Player: Feckless Result: Destroyed by S-43 Plague with Heavy Machine Gun Performance ------------- Evolutions (8) 4000 Regions Visited (26) 5200 Robots Destroyed (131) 655 Value Destroyed (4635) 4635 Prototype IDs (39) 780 Alien Tech Used (0) 0 Bonus (5208) 5208 TOTAL SCORE: 20478 Bonus ------- Triggered Max Security 1000 High Alert Combat Kills 163 Follower Combat Kills 531 Entered DSFs 500 Aligned with FarCom 300 Met Warlord at Base 500 MAIN.C Attacked Warlord 500 Warlord Defense Kills 2460 Friendly Fire -746 Cogmind --------- Core Integrity 0/1450 Matter 295/300 Energy 98/100 System Corruption 6% Temperature Cool (0) Movement Core (50) Location -2/Testing Parts ------- > --- POWER (2) -------- (None) > --- PROPULSION (6) --- (None) > --- UTILITY (13) ----- (None) > --- WEAPON (2) ------- (None) > --- INVENTORY (5) ---- Antigrav System Faulty Cooled Linear Gravjet Cesium-ion Thruster Cesium-ion Thruster Medium Storage Unit Peak State ------------ > --- POWER ------------ Light Antimatter Reactor Improved Quantum Reactor > --- PROPULSION ------- Flexi-carbon Leg Biometal Leg Enhanced Biometal Leg Field Propulsion Array > --- UTILITY ---------- Advanced Power Amplifier Experimental Heat Sink Advanced Cooling System Advanced Coolant Injector Advanced Energy Well Advanced Targeting Computer Experimental Core Analyzer Advanced Hacking Suite System Shield System Shield > --- WEAPON ----------- Vortex Shotgun Vortex Shotgun > --- INVENTORY -------- Advanced Field Recycling Unit Vortex Shotgun Vortex Shotgun [Rating: 133] Favorites ----------- Power Light Angular Momentum Engine Engine Light Angular Momentum Engine Power Core Micro Nuclear Core Reactor Light Quantum Reactor Propulsion Carbon-fiber Leg Treads Improved Heavy Treads Leg Carbon-fiber Leg Wheel Wheel Hover Unit Antigrav System Flight Unit Field Propulsion Array Utility System Shield Device Improved Shield Generator Storage Small Storage Unit Processor Advanced Targeting Computer Hackware System Shield Protection Layered Light Armor Plating Weapon Gatling Laser Energy Gun Gatling Laser Energy Cannon Advanced Beam Cannon Ballistic Gun Improved KE Penetrator Ballistic Cannon Heavy Gauss Cannon Launcher Rocket Launcher Special Weapon Improved Remote Datajack Slashing Weapon Mining Claw Special Melee Weapon Improved Datajack Build | -11 -10 -10 -9 -9 -9 -8 -8 -8 -7 -7 -7 -6 -6 -5 -5 -5 -4 -4 -4 -4 -4 -4 -3 -3 -2 -2 ------- Run | Scr Mat Min Mat Min Exi Min Mat Sto Fac Low Low Fac DSF Fac Upp Upp Fac Was Fac Upp Upp War Pro Res Res Tes Slots Evolved 16 | . . . 2 . . . 2 . 2 . . 2 . 2 . . 2 . . . . . . 2 2 . Power 1 | . . . . . . . . . . . . 1 . . . . . . . . . . . . . . Propulsion 4 | . . . 1 . . . 1 . . . . . . 1 . . . . . . . . . . 1 . Utility 11 | . . . 1 . . . 1 . 2 . . 1 . 1 . . 2 . . . . . . 2 1 . Weapon . | . . . . . . . . . . . . . . . . . . . . . . . . . . . Parts Attached 214 | 6 15 2 6 11 1 1 7 7 7 8 . 3 5 47 6 2 9 5 8 . 3 25 4 11 5 10 Power 25 | 1 3 . . 1 . . . . 2 . . 1 . 6 1 . 1 2 1 . 1 2 1 . 1 1 Engine 10 | 1 3 . . 1 . . . . 1 . . 1 . 1 1 . . . . . 1 . . . . . Core 4 | . . . . . . . . . 1 . . . . . . . 1 2 . . . . . . . . Reactor 11 | . . . . . . . . . . . . . . 5 . . . . 1 . . 2 1 . 1 1 Propulsion 45 | 2 4 2 1 5 . . 1 . . . . . . 11 1 1 3 . . . 1 8 . 2 2 1 Treads 2 | . . . . . . . . . . . . . . . . . . . . . . . . . 1 1 Leg 19 | . 2 . . 2 . . . . . . . . . 5 1 . 1 . . . . 6 . 1 1 . Wheel 5 | 2 . . . . . . . . . . . . . 3 . . . . . . . . . . . . Hover 2 | . . . . . . . . . . . . . . 2 . . . . . . . . . . . . Flight 17 | . 2 2 1 3 . . 1 . . . . . . 1 . 1 2 . . . 1 2 . 1 . . Utility 84 | 1 2 . 2 3 1 1 1 2 4 3 . 2 3 20 1 1 4 1 7 . 1 8 . 8 2 6 Device 50 | . . . 1 2 . 1 1 . 4 2 . 1 2 10 1 1 2 1 5 . 1 4 . 5 1 5 Storage 11 | 1 . . 1 . 1 . . . . . . . . 3 . . 1 . . . . 1 . 1 1 1 Processor 6 | . . . . . . . . . . 1 . . . . . . 1 . . . . 2 . 2 . . Hackware 8 | . . . . . . . . 1 . . . . . 5 . . . . 1 . . 1 . . . . Protection 9 | . 2 . . 1 . . . 1 . . . 1 1 2 . . . . 1 . . . . . . . Artifact . | . . . . . . . . . . . . . . . . . . . . . . . . . . . Weapon 60 | 2 6 . 3 2 . . 5 5 1 5 . . 2 10 3 . 1 2 . . . 7 3 1 . 2 Energy Gun 30 | 1 1 . . 1 . . 2 4 1 . . . 2 6 3 . . . . . . 5 2 . . 2 Energy Cannon 3 | . . . . 1 . . 1 . . 1 . . . . . . . . . . . . . . . . Ballistic Gun 6 | 1 2 . . . . . . . . . . . . 1 . . . . . . . . 1 1 . . Ballistic Cannon 3 | . . . . . . . . . . . . . . . . . 1 2 . . . . . . . . Launcher 10 | . 3 . 2 . . . . 1 . 1 . . . 1 . . . . . . . 2 . . . . Special Weapon 2 | . . . . . . . . . . 1 . . . 1 . . . . . . . . . . . . Impact Weapon . | . . . . . . . . . . . . . . . . . . . . . . . . . . . Slashing Weapon 2 | . . . . . . . . . . 2 . . . . . . . . . . . . . . . . Piercing Weapon . | . . . . . . . . . . . . . . . . . . . . . . . . . . . Special Melee Weapon 4 | . . . 1 . . . 2 . . . . . . 1 . . . . . . . . . . . . Unidentified Prototypes 13 | . . . . 1 . . 2 1 . . . . . 2 . . . . . . . 7 . . . . Parts Lost 94 | . 3 6 6 . . . . . 1 3 . . 6 19 2 7 . 1 . 3 . 5 15 7 1 9 Power 15 | . 1 1 . . . . . . 1 . . . 2 2 . 1 . . . 1 . 1 3 . . 2 Propulsion 26 | . 2 2 3 . . . . . . . . . 1 6 . 2 . . . 1 . 1 4 2 . 2 Utility 27 | . . 1 1 . . . . . . 1 . . 1 5 2 2 . . . 1 . 2 3 4 1 3 Weapon 26 | . . 2 2 . . . . . . 2 . . 2 6 . 2 . 1 . . . 1 5 1 . 2 Highest Loss Streak 9 | . 3 6 5 . . . . . 1 2 . . 6 6 2 6 . 1 . 3 . 2 9 7 1 9 To Critical Strikes 3 | . . . . . . . . . . . . . . 2 . . . . . . . . 1 . . . Average Slot Usage (%) 70 | . 89 94 47 80 88 88 72 72 73 72 69 . 75 70 37 42 35 51 68 67 54 64 90 51 40 50 Engine 4 | . 10 12 . 10 11 11 9 9 3 . . . 5 . . 3 . . . . 4 3 . . . . Reactor 1 | . . . . . . . . . . . . . . 5 . . . . . . . 1 8 . 2 4 Leg 7 | . 12 25 . 19 22 22 . . . . . . . 10 . 3 2 . . . . 1 21 1 2 2 Wheel 1 | . 7 . . . . . . . . . . . . 3 . . . . . . . . . . . . Flight 6 | . 5 2 17 10 11 11 9 9 7 7 7 . 5 . 5 3 8 15 15 14 10 10 . 2 . . Device 14 | . . . 1 20 18 11 18 9 18 14 7 . 22 15 7 6 2 5 17 20 18 19 9 12 2 14 Storage 4 | . 14 14 17 . 3 11 9 9 7 7 7 . 5 2 . . 2 5 3 . . . 4 1 3 3 Processor 2 | . . . . . . . . . . 6 7 . . . . . 4 5 5 5 5 5 15 21 17 14 Hackware 8 | . . . . . . . . 4 7 7 7 . 5 18 13 11 10 10 14 15 15 15 20 9 8 3 Protection 4 | . 13 12 . 9 11 11 9 12 9 7 7 . 8 . . . . . . . . . . . . . Energy Gun 6 | . 6 . . 10 11 11 9 14 13 . . . 5 4 3 7 . . . . . 4 7 . . . Launcher 1 | . 12 25 7 . . . . 2 1 4 . . . . . . . . . . . . . . . . Naked Turns 116 | . . . 43 15 . . . . . . . . 5 32 . . . . . . . . . . . 21 Heaviest Build 97 | 11 17 17 14 22 26 23 31 32 32 28 23 33 43 52 20 21 28 26 37 36 30 56 52 20 63 97 Greatest Support 150 | 32 32 20 12 25 25 25 50 50 50 50 50 50 50 80 15 15 37 37 37 37 30 113 113 25 75 150 Greatest Overweight (x) 9 | . 2 . 4 3 1 . . . . . . . . 2 1 1 9 . . . . 1 . 1 . 1 Average Overweight (x) . | . . . . . . . . . . . . . . . . . . . . . . . . . . . Largest Inventory Capacity 20 | 8 8 8 8 5 8 8 8 8 8 8 8 8 8 5 5 5 5 5 5 5 5 5 5 5 20 20 Average Capacity 6 | 6 8 8 7 5 5 8 8 8 8 8 8 8 7 5 5 5 5 5 5 5 5 5 5 5 17 16 Most Carried 8 | 5 8 8 7 5 8 8 8 8 8 8 8 7 8 5 5 5 5 5 5 5 5 5 5 5 8 7 Average Carried 5 | 2 6 7 5 4 4 7 7 7 7 7 8 5 5 4 4 4 4 4 4 5 4 4 4 4 5 3 Final Capacity 20 | 8 8 8 5 5 8 8 8 8 8 8 8 8 5 5 5 5 5 5 5 5 5 5 5 5 20 5 Final Carried 8 | 4 8 6 5 5 8 8 8 8 8 8 8 5 5 4 5 5 5 4 5 5 5 5 4 5 6 5 Class Distribution -------------------- 43% | Hacker-Mutant 38% | Mutant 16% | Scavenger-Mutant Dominant Class ---------------- Mutant | -10/Materials Mutant | -10/Mines Mutant | -9/Materials Scavenger-Mutant | -9/Mines Scavenger-Mutant | -9/Exiles Scavenger-Mutant | -8/Mines Mutant | -8/Materials Mutant | -8/Storage Mutant | -7/Factory Mutant | -7/Lower Caves Mutant | -7/Lower Caves Mutant | -6/Factory Mutant | -6/DSF Hacker-Mutant | -5/Factory Hacker-Mutant | -5/Upper Caves Hacker-Mutant | -5/Upper Caves Hacker-Mutant | -4/Factory Hacker-Mutant | -4/Waste Hacker-Mutant | -4/Factory Hacker-Mutant | -4/Upper Caves Hacker-Mutant | -4/Upper Caves Hacker-Mutant | -4/Warlord Scavenger-Mutant | -3/Proximity Caves Hacker-Mutant | -3/Research Hacker-Mutant | -2/Research Mutant | -2/Testing Resources | -11 -10 -10 -9 -9 -9 -8 -8 -8 -7 -7 -7 -6 -6 -5 -5 -5 -4 -4 -4 -4 -4 -4 -3 -3 -2 -2 ----------- Run | Scr Mat Min Mat Min Exi Min Mat Sto Fac Low Low Fac DSF Fac Upp Upp Fac Was Fac Upp Upp War Pro Res Res Tes Matter Collected 3387 | 194 270 144 124 290 . . 88 75 100 153 . . 15 833 182 74 . 188 48 3 33 316 78 . . 179 Remotely . | . . . . . . . . . . . . . . . . . . . . . . . . . . . Salvage Created 4523 | . 245 48 225 196 . . 169 617 286 338 . . . 930 38 211 . 277 11 21 . 753 158 . . . Parts 229 | . 20 7 25 16 . . 14 27 10 27 . . . 42 4 2 . 4 . 1 . 26 4 . . . Haulers Intercepted 5 | . 1 . . . . . 1 3 . . . . . . . . . . . . . . . . . . Recyclers Shooed 3 | . . . . . . . . 1 . . . . . 2 . . . . . . . . . . . . Parts Field Recycled 54 | . . . . . . . . . . . . . . . . . . . 45 4 4 1 . . . . Retrieved Matter 854 | . . . . . . . . . . . . . . . . . . . 786 35 30 3 . . . . Parts Self-Destructed 25 | . . . . . . . . . . 14 . . . . 6 1 . . . 1 . . 3 . . . Prevented 9 | . . . . . . . . . . 8 . . . . 1 . . . . . . . . . . . Kills | -11 -10 -10 -9 -9 -9 -8 -8 -8 -7 -7 -7 -6 -6 -5 -5 -5 -4 -4 -4 -4 -4 -4 -3 -3 -2 -2 ------- Run | Scr Mat Min Mat Min Exi Min Mat Sto Fac Low Low Fac DSF Fac Upp Upp Fac Was Fac Upp Upp War Pro Res Res Tes Combat Hostiles Destroyed 105 | . 8 9 10 8 . . 4 6 5 11 . . . 15 . . . 1 1 1 . 20 6 . . . Guns 54 | . 6 . . 8 . . 4 5 1 1 . . . 14 . . . . . . . 11 4 . . . Cannons 4 | . . . . . . . . . . 1 . . . . . . . 1 1 1 . . . . . . AOE 46 | . 2 9 10 . . . . 1 4 9 . . . . . . . . . . . 9 2 . . . Classes Destroyed 22 | . 5 2 5 1 . . . 1 . 1 . . . . 1 . . 1 . . . 5 . . . . Worker 4 | . . . . 1 . . . . . . . . . 3 . . . . . . . . . . . . Builder 3 | . . . 2 . . . . . . . . . . 1 . . . . . . . . . . . . Hauler 5 | . 1 . . . . . 1 3 . . . . . . . . . . . . . . . . . . Recycler 3 | . 1 . . . . . . 1 . . . . . 1 . . . . . . . . . . . . Mechanic 1 | . . . 1 . . . . . . . . . . . . . . . . . . . . . . . Operator 3 | . . . 1 . . . 1 1 . . . . . . . . . . . . . . . . . . Watcher 9 | . 2 . 1 . . . 1 2 3 . . . . . . . . . . . . . . . . . Swarmer 47 | . 6 3 3 5 . . 3 . 4 10 . . . 5 . . . . . 1 . 3 4 . . . Grunt 22 | . 2 1 3 3 . . 1 3 1 . . . . 1 . . . . . . . 7 . . . . Brawler 3 | . . . 1 . . . . . . . . . . . . . . . . . . 2 . . . . Duelist 2 | . . . . . . . . . . . . . . . . . . . . . . 2 . . . . Protector 2 | . . . . . . . . . . . . . . . . . . . . . . 2 . . . . Sentry 6 | . . . 3 . . . . 2 . . . . . . . . . . . . . . 1 . . . Demolisher 1 | . . 1 . . . . . . . . . . . . . . . . . . . . . . . . Specialist 1 | . . . . . . . . . . . . . . . . . . . . . . 1 . . . . Hunter 4 | . . . . . . . . 1 . . . . . . . . . . . . . 2 1 . . . Programmer 12 | . . . . . . . . . . 1 . . . 9 . . . . 1 . . 1 . . . . Compactor 1 | . . . . . . . . . . . . . . . . . . 1 . . . . . . . . Packrat 1 | . . . . . . . . . . . . . . . . 1 . . . . . . . . . . Samaritan 1 | . . . . . . . . . . . . . . . 1 . . . . . . . . . . . Tinkerer 1 | . . . . . . . . . . . . . . . . . . . . . . 1 . . . . Assembled 4 | . . 4 . . . . . . . . . . . . . . . . . . . . . . . . Thug 1 | . . . . . . . . . . . . . . . . . . . . . . 1 . . . . Mutant 1 | . . . . . . . . . . . . . . . . . . . . . . 1 . . . . Best Kill Streak 7 | . 4 5 7 5 . . 2 3 4 4 . . . 5 . . . 1 1 1 . 7 3 . . . Combat Bots Only 7 | . 3 5 4 5 . . 2 2 4 4 . . . 5 . . . 1 1 1 . 7 3 . . . Max Kills in Single Turn 5 | . 2 2 2 1 . . 1 2 2 4 . . . 1 1 1 . 1 1 1 . 5 1 . . . Gunslinging 1 | . . . . . . . . . . . . . . . . . . . . . . 1 . . . . Exploded 4 | . 1 2 2 . . . . 1 2 4 . . . . . . . . . . . 4 1 . . . Melee . | . . . . . . . . . . . . . . . . . . . . . . . . . . . Uniques/NPCs Destroyed . | . . . . . . . . . . . . . . . . . . . . . . . . . . . Combat | -11 -10 -10 -9 -9 -9 -8 -8 -8 -7 -7 -7 -6 -6 -5 -5 -5 -4 -4 -4 -4 -4 -4 -3 -3 -2 -2 -------- Run | Scr Mat Min Mat Min Exi Min Mat Sto Fac Low Low Fac DSF Fac Upp Upp Fac Was Fac Upp Upp War Pro Res Res Tes Damage Taken 14883 | . 432 534 426 75 . . 170 345 418 638 . . 675 2504 211 577 45 51 72 343 18 802 1591 1215 504 3237 Core 4097 | . 126 97 181 10 . . . 21 10 115 . . 112 404 58 302 . 51 . 76 . 222 259 588 84 1381 Absorbed by Shields 756 | . . . . 21 . . 68 89 81 113 . . 47 337 . . . . . . . . . . . . Redirected to Shielding 186 | . 34 52 . . . . . . . . . . . 100 . . . . . . . . . . . . Regen/Repaired (Parts) 243 | . 32 . . . . . . . . . . . . 188 . . . . 23 . . . . . . . Core Remaining (%) 61 | 100 . 10 . . . 52 . 96 . . 82 . 86 . . 23 . . . . . . 47 54 . . Volleys Fired 425 | . 35 12 21 21 . . 26 26 21 20 . . . 106 11 18 1 24 7 4 . 28 26 11 . 7 Largest 2 | . 2 2 2 1 . . 2 2 2 2 . . . 2 1 1 1 1 1 1 . 2 2 1 . 2 Hottest 161 | . 70 66 63 80 . . 148 130 100 100 . . . 161 75 75 61 61 61 61 . 120 120 35 . 146 Shots Fired 544 | . 58 16 23 21 . . 30 33 29 21 . . . 149 12 20 1 22 7 4 . 46 30 11 . 11 Gun 423 | . 51 . . 21 . . 26 32 22 4 . . . 141 12 20 . . . . . 42 30 11 . 11 Cannon 44 | . . . . . . . 4 . . 6 . . . . . . 1 22 7 4 . . . . . . Launcher 74 | . 7 16 23 . . . . 1 7 9 . . . 7 . . . . . . . 4 . . . . Special 3 | . . . . . . . . . . 2 . . . 1 . . . . . . . . . . . . Kinetic 153 | . 31 . . . . . . . . . . . . 64 . . 1 22 7 4 . . 13 11 . . Thermal 183 | . 20 . . 21 . . 25 4 . . . . . 70 12 20 . . . . . . . . . 11 Explosive 46 | . 7 16 23 . . . . . . . . . . . . . . . . . . . . . . . Electromagnetic 96 | . . . . . . . 5 29 29 19 . . . 14 . . . . . . . . . . . . Entropic 63 | . . . . . . . . . . . . . . . . . . . . . . 46 17 . . . Robot Hit Streak 16 | . 7 1 6 6 . . 7 6 10 7 . . . 9 4 5 . 16 6 4 . 15 10 1 . 10 Robot Miss Streak 7 | . 4 4 2 4 . . 6 7 6 3 . . . 4 2 2 . 1 1 2 . 5 7 3 . 1 Penetration Max 1 | . . . . . . . . . . . . . . 1 . . . 1 . . . . . . . . Secondary Targets 4 | . . . . . . . . 1 . . . . . 1 . . . . . . . 2 . . . . Max Gunslinging Chain 1 | . . . . . . . . 1 . . . . . 1 . . . . . . . 1 . . . . Shots Hit Robots 368 | . 25 1 12 18 . . 38 27 21 13 . . . 99 7 12 . 19 5 1 . 38 21 1 . 10 Core Hits 270 | . 15 17 31 15 . . 13 23 19 18 . . . 35 2 5 . 3 1 1 . 53 14 . . 5 Critical Kills 2 | . . . . . . . . . . . . . . 1 . . . 1 . . . . . . . . Critical Parts Destroyed 5 | . . . . . . . . . . . . . . 1 . . . 1 . . . 1 2 . . . Critical Strikes 21 | . . . . . . . . . . 1 . . . 3 . 1 . 12 . . . 1 2 . . 1 Burn 3 | . . . . . . . . . . . . . . 1 . 1 . . . . . . . . . 1 Destroy 14 | . . . . . . . . . . . . . . 2 . . . 12 . . . . . . . . Corrupt 1 | . . . . . . . . . . 1 . . . . . . . . . . . . . . . . Detonate 3 | . . . . . . . . . . . . . . . . . . . . . . 1 2 . . . Melee Attacks 61 | . . . . . . . 17 . . 30 . . . 14 . . . . . . . . . . . . Impact . | . . . . . . . . . . . . . . . . . . . . . . . . . . . Slashing 30 | . . . . . . . . . . 30 . . . . . . . . . . . . . . . . Piercing . | . . . . . . . . . . . . . . . . . . . . . . . . . . . Sneak Attacks 29 | . . . . . . . 17 . . . . . . 12 . . . . . . . . . . . . Combat Hostiles . | . . . . . . . . . . . . . . . . . . . . . . . . . . . Follow-up Attacks . | . . . . . . . . . . . . . . . . . . . . . . . . . . . Damage Inflicted 14607 | . 770 481 829 419 . 8 402 745 663 557 . . . 2447 137 239 . 471 217 34 . 4882 1013 34 . 259 Guns 7833 | . 247 . . 414 . . 402 596 318 46 . . . 2239 137 239 . . . . . 2189 776 32 . 198 Cannons 752 | . . . . . . . . . . 30 . . . . . . . 471 217 34 . . . . . . Explosions 5935 | . 513 481 829 . . . . 149 345 481 . . . 207 . . . . . . . 2693 237 . . . Melee . | . . . . . . . . . . . . . . . . . . . . . . . . . . . Ramming 87 | . 10 . . 5 . 8 . . . . . . . 1 . . . . . . . . . 2 . 61 Kinetic 2092 | . 134 . . . . . . . . . . . . 1097 . . . 471 217 34 . . 107 32 . . Thermal 3282 | . 113 . . 414 . . 368 206 . 116 . . . 1075 137 239 . . . . . 179 237 . . 198 Explosive 1823 | . 513 481 829 . . . . . . . . . . . . . . . . . . . . . . . Electromagnetic 1951 | . . . . . . . 34 539 663 441 . . . 274 . . . . . . . . . . . . Impact . | . . . . . . . . . . . . . . . . . . . . . . . . . . . Slashing . | . . . . . . . . . . . . . . . . . . . . . . . . . . . Piercing . | . . . . . . . . . . . . . . . . . . . . . . . . . . . Entropic 5372 | . . . . . . . . . . . . . . . . . . . . . . 4703 669 . . . Highest Corruption 17 | . . . . . . . . . 4 5 5 . . 17 17 17 . 9 12 12 12 12 1 . . 6 Average Corruption 8 | . . . . . . . . . 2 4 5 . . 6 17 17 . 9 11 12 12 3 1 . . 4 Corruption Purged . | . . . . . . . . . . . . . . . . . . . . . . . . . . . Corruption Blocked 14 | . . . . . . . . . . . . . . . . . . . . . . 7 . 7 . . Effects 182 | . . . . . . . . . 1 23 1 . . 66 21 26 . 6 16 7 8 1 5 . . 1 Message Errors 39 | . . . . . . . . . 1 7 . . . 13 2 4 . . 3 4 4 . 1 . . . Matter Fused 41 | . . . . . . . . . . 3 . . . 20 2 8 . 1 4 1 1 . . . . 1 Heat Flow Errors 24 | . . . . . . . . . . 3 . . . 9 6 3 . 1 2 . . . . . . . Energy Discharges 24 | . . . . . . . . . . 2 . . . 4 5 4 . 1 3 1 2 1 1 . . . Parts Rejected 5 | . . . . . . . . . . 1 . . . 1 2 . . . . . . . 1 . . . Data Loss (minor) 26 | . . . . . . . . . . 5 1 . . 9 2 3 . 1 1 1 1 . 2 . . . Data Loss (major) 9 | . . . . . . . . . . 2 . . . 5 . 1 . . 1 . . . . . . . Misfires 3 | . . . . . . . . . . . . . . . 1 2 . . . . . . . . . . Alerts 5 | . . . . . . . . . . . . . . 3 . 1 . . 1 . . . . . . . Misdirections 2 | . . . . . . . . . . . . . . . 1 . . . 1 . . . . . . . Weapon Failures 4 | . . . . . . . . . . . . . . 2 . . . 2 . . . . . . . . Overload Shots . | . . . . . . . . . . . . . . . . . . . . . . . . . . . Overflow Damage 285 | . 23 8 11 . . . . . 5 9 . . . 9 . . . . 13 . . 195 12 . . . Projectiles 13 | . . . . . . . . . . . . . . . . . . . 13 . . . . . . . Explosions 272 | . 23 8 11 . . . . . 5 9 . . . 9 . . . . . . . 195 12 . . . Melee . | . . . . . . . . . . . . . . . . . . . . . . . . . . . Knockbacks 2 | . . . . . . . . . . . . . . . . . . . 2 . . . . . . . Impact . | . . . . . . . . . . . . . . . . . . . . . . . . . . . Kinetic 2 | . . . . . . . . . . . . . . . . . . . 2 . . . . . . . Secondary . | . . . . . . . . . . . . . . . . . . . . . . . . . . . Self-Inflicted Damage 481 | . 45 72 61 . . . . 35 . 3 . . . 54 . . . . . . . 150 38 . . 23 Shots 14 | . 1 3 2 . . . . 1 . 1 . . . 4 . . . . . . . 1 1 . . . Rammed 17 | . 4 . . . . . . . . . . . . . . . . . . . . . . . . 13 Targets Rammed 25 | . 4 . . 1 . 1 . . . . . . . 4 . . . . . . . . . 2 . 13 Kicked 8 | . . . . 1 . 1 . . . . . . . 4 . . . . . . . . . 2 . . Crushed . | . . . . . . . . . . . . . . . . . . . . . . . . . . . Highest Temperature 363 | . 160 12 16 310 . . 317 252 53 107 . . . 363 198 145 6 141 183 125 . 90 . . . 306 Average Temperature 87 | . 58 5 8 119 . . 106 65 21 45 . . . 146 78 51 4 27 73 39 . 35 . . . 145 Received Heat Transfer 1192 | . . . 177 12 . . 66 166 39 18 . . . 42 . 48 9 . . 12 . 18 27 18 72 468 Effects 6 | . . . . . . . 1 4 . . . . . 1 . . . . . . . . . . . . Energy Bleed 2 | . . . . . . . 1 . . . . . . 1 . . . . . . . . . . . . Interference 4 | . . . . . . . . 4 . . . . . . . . . . . . . . . . . . Siege Activations . | . . . . . . . . . . . . . . . . . . . . . . . . . . . Robots Corrupted 1 | . . . . . . . . . 1 . . . . . . . . . . . . . . . . . Combat Hostiles . | . . . . . . . . . . . . . . . . . . . . . . . . . . . Parts Fried 7 | . . . . . . . . 3 2 . . . . . . . . . . . . 2 . . . . Impact Corruptions . | . . . . . . . . . . . . . . . . . . . . . . . . . . . Robots Melted 1 | . . . . . . . . . . . . . . 1 . . . . . . . . . . . . Combat Hostiles 1 | . . . . . . . . . . . . . . 1 . . . . . . . . . . . . Parts Melted 14 | . 1 . . 1 . . 1 . . . . . . 10 1 . . . . . . . . . . . Heat Transferred 5425 | . 333 . . 925 . . 825 325 . 100 . . . 1672 259 481 . . . . . 75 100 . . 330 Parts Sabotaged 8 | . . . . . . . . . . . . . . . . . . . . . . . . . . 8 Parts Stolen . | . . . . . . . . . . . . . . . . . . . . . . . . . . . Parts Stripped . | . . . . . . . . . . . . . . . . . . . . . . . . . . . Power Chain Reactions 9 | . . . . . . . . 3 . 3 . . . 1 . . . . 2 . . . . . . . Missiles Intercepted . | . . . . . . . . . . . . . . . . . . . . . . . . . . . Alert | -11 -10 -10 -9 -9 -9 -8 -8 -8 -7 -7 -7 -6 -6 -5 -5 -5 -4 -4 -4 -4 -4 -4 -3 -3 -2 -2 ------- Run | Scr Mat Min Mat Min Exi Min Mat Sto Fac Low Low Fac DSF Fac Upp Upp Fac Was Fac Upp Upp War Pro Res Res Tes Peak Influence 1765 | . 383 339 774 426 . 45 166 750 602 . . 170 164 353 . . 58 20 220 . . . . 79 30 1765 Initial 301 | . . 148 131 301 . . 17 69 256 . . 170 119 54 . . 9 20 . . . . . . 30 11 Average 212 | . 242 266 436 315 . . 24 517 399 . . 170 129 111 . . 33 7 134 . . . . 29 29 1617 Maximum Alert Level 5 | . 1 1 3 2 . . . 3 2 . . . . 1 . . . . 1 . . . . . . 5 Low Security (%) 60 | 100 48 8 31 1 . 100 100 10 . . . 100 100 77 . . 100 100 89 . . . . 100 100 . Level 1 23 | . 51 91 11 64 . . . 11 46 . . . . 22 . . . . 10 . . . . . . . Level 2 13 | . . . 32 33 . . . 76 53 . . . . . . . . . . . . . . . . . Level 3 . | . . . 24 . . . . 2 . . . . . . . . . . . . . . . . . . Level 4 . | . . . . . . . . . . . . . . . . . . . . . . . . . . . Level 5 . | . . . . . . . . . . . . . . . . . . . . . . . . . . . High Security . | . . . . . . . . . . . . . . . . . . . . . . . . . . . Max Security 2 | . . . . . . . . . . . . . . . . . . . . . . . . . . 99 Squads Dispatched 43 | . 1 . 3 1 . . 1 4 2 . . . 1 9 . . . . 3 . . . . 2 4 12 Investigation 9 | . . . . 1 . . . 2 . . . . . 3 . . . . 3 . . . . . . . Extermination 6 | . . . . . . . . . 1 . . . . 4 . . . . . . . . . 1 . . Reinforcement 13 | . 1 . 2 . . . 1 1 1 . . . 1 1 . . . . . . . . . 1 4 . Assault 15 | . . . 1 . . . . 1 . . . . . 1 . . . . . . . . . . . 12 Garrison . | . . . . . . . . . . . . . . . . . . . . . . . . . . . Intercept . | . . . . . . . . . . . . . . . . . . . . . . . . . . . Searches Triggered 1 | . . . . . . . . . 1 . . . . . . . . . . . . . . . . . Construction Impeded 1 | . . . 1 . . . . . . . . . . . . . . . . . . . . . . . Haulers Reinforced 3 | . . . . . . . . . 1 . . . . . . . . . . . . . . . 2 . Active Scanning Responses . | . . . . . . . . . . . . . . . . . . . . . . . . . . . Cargo Convoy Interrupts . | . . . . . . . . . . . . . . . . . . . . . . . . . . . Stealth | -11 -10 -10 -9 -9 -9 -8 -8 -8 -7 -7 -7 -6 -6 -5 -5 -5 -4 -4 -4 -4 -4 -4 -3 -3 -2 -2 --------- Run | Scr Mat Min Mat Min Exi Min Mat Sto Fac Low Low Fac DSF Fac Upp Upp Fac Was Fac Upp Upp War Pro Res Res Tes Distress Signals 13 | . 2 . 1 . . . 1 3 . . . . . . . . . . . . . 1 . . 5 . Communications Jammed 14 | . . . . . . . 1 . . . . . . . . . . . . . . . . . . 13 Distress Signals 14 | . . . . . . . 1 . . . . . . . . . . . . . . . . . . 13 Times Spotted 372 | . 16 11 17 10 . 6 19 23 19 22 . . 6 39 5 1 1 5 3 15 2 50 11 11 6 74 Peak Tracking Total 49 | . 4 5 5 4 . 6 9 7 6 6 . . 5 6 4 1 2 4 3 10 4 12 3 7 6 49 Tactical Retreats 47 | . 1 1 . . . 1 5 5 5 4 . . 3 9 2 1 1 . 1 3 . . 1 2 . 2 Traps | -11 -10 -10 -9 -9 -9 -8 -8 -8 -7 -7 -7 -6 -6 -5 -5 -5 -4 -4 -4 -4 -4 -4 -3 -3 -2 -2 ------- Run | Scr Mat Min Mat Min Exi Min Mat Sto Fac Low Low Fac DSF Fac Upp Upp Fac Was Fac Upp Upp War Pro Res Res Tes Traps Triggered 12 | . 1 . . . . . 2 1 . . . . 1 3 . . 1 . 1 . . . . . . 2 Indirectly 1 | . . . . . . . . . . . . . . 1 . . . . . . . . . . . . Trap Hack Attempts . | . . . . . . . . . . . . . . . . . . . . . . . . . . . Triggered . | . . . . . . . . . . . . . . . . . . . . . . . . . . . Disarmed . | . . . . . . . . . . . . . . . . . . . . . . . . . . . Reprogrammed . | . . . . . . . . . . . . . . . . . . . . . . . . . . . Reused . | . . . . . . . . . . . . . . . . . . . . . . . . . . . Traps Extracted . | . . . . . . . . . . . . . . . . . . . . . . . . . . . Installed . | . . . . . . . . . . . . . . . . . . . . . . . . . . . Triggered 21 | . . . . . . . . . . . . . . . 4 . . . . . . 17 . . . . Machines | -11 -10 -10 -9 -9 -9 -8 -8 -8 -7 -7 -7 -6 -6 -5 -5 -5 -4 -4 -4 -4 -4 -4 -3 -3 -2 -2 ---------- Run | Scr Mat Min Mat Min Exi Min Mat Sto Fac Low Low Fac DSF Fac Upp Upp Fac Was Fac Upp Upp War Pro Res Res Tes Machines Disabled 30 | . 8 2 4 . . . 1 4 . 1 . . . 5 . . . . . . . 5 . . . . Max in Single Turn 6 | . 6 1 2 . . . 1 1 . 1 . . . 2 . . . . . . . 3 . . . . Garrison Access 2 | . . . . . . . . . . . . . . 2 . . . . . . . . . . . . Machines Sabotaged . | . . . . . . . . . . . . . . . . . . . . . . . . . . . Garrisons Compromised . | . . . . . . . . . . . . . . . . . . . . . . . . . . . Overloaded Fab Kills 3 | . . . . . . . . . . . . . . . . . . . 3 . . . . . . . Hacking | -11 -10 -10 -9 -9 -9 -8 -8 -8 -7 -7 -7 -6 -6 -5 -5 -5 -4 -4 -4 -4 -4 -4 -3 -3 -2 -2 --------- Run | Scr Mat Min Mat Min Exi Min Mat Sto Fac Low Low Fac DSF Fac Upp Upp Fac Was Fac Upp Upp War Pro Res Res Tes Machines Accessed 56 | . 5 . 1 1 5 . 3 3 3 . . 1 . 14 . 1 . . 6 2 . 10 . 1 . . Terminals 21 | . 3 . . . . . 3 3 2 . . 1 . 7 . 1 . . . . . . . 1 . . Fabricators 6 | . . . . . . . . . . . . . . 5 . . . . 1 . . . . . . . Repair Stations 4 | . 1 . . . . . . . . . . . . 1 . . . . 2 . . . . . . . Recycling Units 2 | . 1 . . . . . . . 1 . . . . . . . . . . . . . . . . . Scanalyzers 3 | . . . 1 . . . . . . . . . . . . . . . 2 . . . . . . . Garrison Access 2 | . . . . . . . . . . . . . . 1 . . . . 1 . . . . . . . Total Hacks 199 | . 13 . 7 1 50 . 12 8 5 . . 2 . 55 . 2 . . 15 11 . 17 . 1 . . Successful 156 | . 9 . 6 1 50 . 6 1 1 . . 1 . 39 . 2 . . 12 11 . 17 . . . . Failed 43 | . 4 . 1 . . . 6 7 4 . . 1 . 16 . . . . 3 . . . . 1 . . Catastrophic 9 | . 1 . . . . . 3 1 1 . . . . 2 . . . . . . . . . 1 . . Database Lockouts . | . . . . . . . . . . . . . . . . . . . . . . . . . . . Manual 55 | . . . . . 1 . 9 9 3 . . . . 19 . 5 . . 6 . . 2 . 1 . . Terminals 59 | . 8 . . . . . 12 8 3 . . 2 . 23 . 2 . . . . . . . 1 . . Fabricators 18 | . . . . . . . . . . . . . . 17 . . . . 1 . . . . . . . Repair Stations 22 | . 3 . . . . . . . . . . . . 13 . . . . 6 . . . . . . . Recycling Units 4 | . 2 . . . . . . . 2 . . . . . . . . . . . . . . . . . Scanalyzers 14 | . . . 7 . . . . . . . . . . . . . . . 7 . . . . . . . Garrison Access 3 | . . . . . . . . . . . . . . 2 . . . . 1 . . . . . . . Terminal Hacks 103 | . 6 . . 1 50 . 3 1 1 . . 1 . 10 . 2 . . . 11 . 17 . . . . Record 78 | . . . . . 49 . . . . . . . . 1 . 2 . . . 10 . 16 . . . . Part Schematic 3 | . . . . . . . 1 . . . . . . 2 . . . . . . . . . . . . Robot Analysis 1 | . . . . . . . . . . . . . . 1 . . . . . . . . . . . . Prototype ID Bank 1 | . 1 . . . . . . . . . . . . . . . . . . . . . . . . . Open Door 3 | . . . . 1 . . . . . . . . . . . . . . . 1 . 1 . . . . Open DSF 3 | . . . . . . . . . 1 . . 1 . 1 . . . . . . . . . . . . Branch Access Points 1 | . . . . . . . . . . . . . . 1 . . . . . . . . . . . . Emergency Access Points 1 | . . . . . . . . . . . . . . 1 . . . . . . . . . . . . Terminal Index 3 | . . . . . . . 1 1 . . . . . 1 . . . . . . . . . . . . Locate Traps 1 | . 1 . . . . . . . . . . . . . . . . . . . . . . . . . Dispatch Records 3 | . 2 . . . . . . . . . . . . 1 . . . . . . . . . . . . Recall Investigation 1 | . . . . . . . 1 . . . . . . . . . . . . . . . . . . . Hauler Manifests 1 | . 1 . . . . . . . . . . . . . . . . . . . . . . . . . Registered Components 1 | . 1 . . . . . . . . . . . . . . . . . . . . . . . . . Zone Layout 1 | . . . . . . . . . . . . . . 1 . . . . . . . . . . . . EX-Prototype ID Bank 1 | . . . . . 1 . . . . . . . . . . . . . . . . . . . . . Fabricator Hacks 9 | . . . . . . . . . . . . . . 9 . . . . . . . . . . . . Network Status 1 | . . . . . . . . . . . . . . 1 . . . . . . . . . . . . Load Schematic 3 | . . . . . . . . . . . . . . 3 . . . . . . . . . . . . Build 5 | . . . . . . . . . . . . . . 5 . . . . . . . . . . . . Repair Station Hacks 18 | . 2 . . . . . . . . . . . . 12 . . . . 4 . . . . . . . Scan Component 9 | . 1 . . . . . . . . . . . . 6 . . . . 2 . . . . . . . Repair 9 | . 1 . . . . . . . . . . . . 6 . . . . 2 . . . . . . . Recycling Unit Hacks 1 | . 1 . . . . . . . . . . . . . . . . . . . . . . . . . Retrieve Components 1 | . 1 . . . . . . . . . . . . . . . . . . . . . . . . . Scanalyzer 10 | . . . 6 . . . . . . . . . . . . . . . 4 . . . . . . . Insert Component 5 | . . . 3 . . . . . . . . . . . . . . . 2 . . . . . . . Analyze 5 | . . . 3 . . . . . . . . . . . . . . . 2 . . . . . . . Garrison Access Hacks 2 | . . . . . . . . . . . . . . 2 . . . . . . . . . . . . Seal Access 1 | . . . . . . . . . . . . . . 1 . . . . . . . . . . . . Coupler Status 1 | . . . . . . . . . . . . . . 1 . . . . . . . . . . . . Unauthorized Hacks 13 | . . . . . . . 3 . . . . . . 6 . . . . 4 . . . . . . . Terminals 6 | . . . . . . . 3 . . . . . . 3 . . . . . . . . . . . . Assimilate 4 | . . . . . . . 3 . . . . . . 1 . . . . . . . . . . . . Botnet 2 | . . . . . . . . . . . . . . 2 . . . . . . . . . . . . Fabricators 3 | . . . . . . . . . . . . . . 2 . . . . 1 . . . . . . . Fabnet 2 | . . . . . . . . . . . . . . 2 . . . . . . . . . . . . Overload 1 | . . . . . . . . . . . . . . . . . . . 1 . . . . . . . Repair Stations 2 | . . . . . . . . . . . . . . 1 . . . . 1 . . . . . . . Mechanics 2 | . . . . . . . . . . . . . . 1 . . . . 1 . . . . . . . Recycling Units . | . . . . . . . . . . . . . . . . . . . . . . . . . . . Scanalyzers 1 | . . . . . . . . . . . . . . . . . . . 1 . . . . . . . Extract 1 | . . . . . . . . . . . . . . . . . . . 1 . . . . . . . Garrison Access 1 | . . . . . . . . . . . . . . . . . . . 1 . . . . . . . Eject 1 | . . . . . . . . . . . . . . . . . . . 1 . . . . . . . Data Cores Recovered . | . . . . . . . . . . . . . . . . . . . . . . . . . . . Used . | . . . . . . . . . . . . . . . . . . . . . . . . . . . Hacking Detections 29 | . 3 . . . . . 3 4 3 . . 1 . 10 . 1 . . 3 . . . . 1 . . Full Trace Events 5 | . 1 . . . . . . 2 . . . . . 2 . . . . . . . . . . . . Feedback Events . | . . . . . . . . . . . . . . . . . . . . . . . . . . . Feedback Blocked . | . . . . . . . . . . . . . . . . . . . . . . . . . . . Robot Schematics Acquired . | . . . . . . . . . . . . . . . . . . . . . . . . . . . Robots Built 3 | . . . . . . . . . . . . . . 3 . . . . . . . . . . . . Authchips . | . . . . . . . . . . . . . . . . . . . . . . . . . . . Time 152 | . . . . . . . . . . . . . . 152 . . . . . . . . . . . . Total Robot Build Rating 15 | . . . . . . . . . . . . . . 15 . . . . . . . . . . . . Part Schematics Acquired 11 | . . . 3 . . . 1 . . . . . . 2 . . . . 5 . . . . . . . Parts Built 4 | . . . . . . . . . . . . . . 4 . . . . . . . . . . . . Authchips . | . . . . . . . . . . . . . . . . . . . . . . . . . . . Time 343 | . . . . . . . . . . . . . . 343 . . . . . . . . . . . . Total Part Build Rating 28 | . . . . . . . . . . . . . . 28 . . . . . . . . . . . . Parts Repaired 7 | . 1 . . . . . . . . . . . . 5 . . . . 1 . . . . . . . Time 449 | . 26 . . . . . . . . . . . . 282 . . . . 141 . . . . . . . Parts Recycled . | . . . . . . . . . . . . . . . . . . . . . . . . . . . Recycled Matter . | . . . . . . . . . . . . . . . . . . . . . . . . . . . Retrieved Matter . | . . . . . . . . . . . . . . . . . . . . . . . . . . . Retrieved Components 10 | . 10 . . . . . . . . . . . . . . . . . . . . . . . . . Parts Scanalyzed 5 | . . . 3 . . . . . . . . . . . . . . . 2 . . . . . . . Part Schematics Acquired 5 | . . . 3 . . . . . . . . . . . . . . . 2 . . . . . . . Parts Damaged . | . . . . . . . . . . . . . . . . . . . . . . . . . . . Bothacking | -11 -10 -10 -9 -9 -9 -8 -8 -8 -7 -7 -7 -6 -6 -5 -5 -5 -4 -4 -4 -4 -4 -4 -3 -3 -2 -2 ------------ Run | Scr Mat Min Mat Min Exi Min Mat Sto Fac Low Low Fac DSF Fac Upp Upp Fac Was Fac Upp Upp War Pro Res Res Tes Used RIF Installer . | . . . . . . . . . . . . . . . . . . . . . . . . . . . Robots Hacked 19 | . . . . . . . 5 . . 1 . . . 5 . . . . . . . 7 1 . . . Non-combat 11 | . . . . . . . 5 . . 1 . . . 5 . . . . . . . . . . . . Combat 8 | . . . . . . . . . . . . . . . . . . . . . . 7 1 . . . Robot Hacks Applied 21 | . . . . . . . 10 . . 1 . . . 10 . . . . . . . . . . . . parse_system 7 | . . . . . . . 5 . . 1 . . . 1 . . . . . . . . . . . . no_distress 9 | . . . . . . . 4 . . . . . . 5 . . . . . . . . . . . . find_chute 3 | . . . . . . . . . . . . . . 3 . . . . . . . . . . . . find_recycling 1 | . . . . . . . . . . . . . . 1 . . . . . . . . . . . . check_alert 1 | . . . . . . . 1 . . . . . . . . . . . . . . . . . . . Relay Couplers Released 5 | . . . . . . . . . . . . . . 1 . . . . 4 . . . . . . . Ejected 4 | . . . . . . . . . . . . . . . . . . . 4 . . . . . . . Machine Destruction 1 | . . . . . . . . . . . . . . 1 . . . . . . . . . . . . Fabnet Peak Effective % 6 | . . . . . . . . . . . . . . . . . 6 6 6 6 6 6 2 2 . . Autooverrided 8 | . . . . . . . . . . . . . . . . . . . . . . 7 1 . . . Robots Rewired . | . . . . . . . . . . . . . . . . . . . . . . . . . . . Allies Hacked . | . . . . . . . . . . . . . . . . . . . . . . . . . . . Hacks Repelled . | . . . . . . . . . . . . . . . . . . . . . . . . . . . Allies | -11 -10 -10 -9 -9 -9 -8 -8 -8 -7 -7 -7 -6 -6 -5 -5 -5 -4 -4 -4 -4 -4 -4 -3 -3 -2 -2 -------- Run | Scr Mat Min Mat Min Exi Min Mat Sto Fac Low Low Fac DSF Fac Upp Upp Fac Was Fac Upp Upp War Pro Res Res Tes Total Allies 19 | . . 3 . 2 . . . 1 . . . . . 4 . . . 1 . . . 7 1 . . . Largest Group 3 | . . 3 . 2 2 . . 1 . . . . . 3 . . . 1 . . . 1 1 . . . Highest-Rated Group 100 | . . 40 . 48 48 . . 100 . . . . . 87 . . . 46 . . . 47 30 . . . Highest-Rated Ally 100 | . . 16 . 31 31 . . 100 . . . . . 29 . . . 46 . . . 47 30 . . . Total Orders 4 | . . . . . . . . . . . . . . 4 . . . . . . . . . . . . ROAM 4 | . . . . . . . . . . . . . . 4 . . . . . . . . . . . . Ally Attacks 94 | . . 14 . 15 . . . 22 . . . . . 27 . . . 4 . . . 7 5 . . . Total Damage 1866 | . . 116 . 104 . . . 848 . . . . . 357 . . . 139 . . . 214 88 . . . Kills 19 | . . 1 . 3 . . . 11 . . . . . 3 . . . . . . . . 1 . . . Allies Corrupted . | . . . . . . . . . . . . . . . . . . . . . . . . . . . Allies Melted . | . . . . . . . . . . . . . . . . . . . . . . . . . . . Intel | -11 -10 -10 -9 -9 -9 -8 -8 -8 -7 -7 -7 -6 -6 -5 -5 -5 -4 -4 -4 -4 -4 -4 -3 -3 -2 -2 ------- Run | Scr Mat Min Mat Min Exi Min Mat Sto Fac Low Low Fac DSF Fac Upp Upp Fac Was Fac Upp Upp War Pro Res Res Tes Robot Analysis Total 1 | . . . . . . . . . . . . . . 1 . . . . . . . . . . . . Derelict Logs Recovered 9 | . . 1 . 1 . . . . . 1 . . . . 2 1 . . . 2 1 . . . . . Drone Launches . | . . . . . . . . . . . . . . . . . . . . . . . . . . . Drone Recoveries . | . . . . . . . . . . . . . . . . . . . . . . . . . . . Exploration | -11 -10 -10 -9 -9 -9 -8 -8 -8 -7 -7 -7 -6 -6 -5 -5 -5 -4 -4 -4 -4 -4 -4 -3 -3 -2 -2 ------------- Run | Scr Mat Min Mat Min Exi Min Mat Sto Fac Low Low Fac DSF Fac Upp Upp Fac Was Fac Upp Upp War Pro Res Res Tes Turns Passed 17361 | 58 598 644 243 989 1190 139 2159 1004 639 771 26 6 187 3515 449 613 324 109 416 257 160 1598 582 310 112 263 Spaces Moved 14706 | 51 466 496 313 591 797 104 1340 987 705 1090 52 5 157 1979 926 542 419 122 501 643 283 1045 476 328 86 202 Core 950 | 18 13 . 104 30 . . . . . . . . 15 224 . 279 2 . . . . . 32 93 31 109 Treads 146 | . . . . . . . . . . . . . . . . . . . . . . . . . 55 91 Legs 3692 | . 210 368 . 543 797 104 . . . . . . . 925 7 173 . . . . . 63 444 56 . 2 Wheels 724 | 33 73 . . . . . . . . . . . . 618 . . . . . . . . . . . . Hover 78 | . . . . . . . . . . . . . . 78 . . . . . . . . . . . . Flight 9116 | . 170 128 209 18 . . 1340 987 705 1090 52 5 142 134 919 90 417 122 501 643 283 982 . 179 . . Fastest Speed 32 | 50 37 37 34 50 120 120 50 50 50 50 50 50 50 40 40 45 35 35 35 35 37 32 50 45 50 50 Average Speed 72 | 82 87 98 50 117 137 120 50 50 50 50 50 50 50 100 40 98 47 35 35 35 37 76 108 60 120 102 Slowest Speed 500 | 100 150 120 250 280 190 120 50 50 50 50 50 50 50 260 190 190 500 35 35 37 37 185 114 125 160 240 Overloaded Moves . | . . . . . . . . . . . . . . . . . . . . . . . . . . . Propulsion Burnouts . | . . . . . . . . . . . . . . . . . . . . . . . . . . . Robots Hopped 69 | . . 1 1 . . . 21 22 4 5 . . 1 . 2 . 1 . 4 1 1 2 . 3 . . Cave-ins Triggered . | . . . . . . . . . . . . . . . . . . . . . . . . . . . Exploration Rate (%) 48 | 3 70 62 25 96 94 15 34 69 23 89 8 1 87 37 92 58 10 85 9 79 47 92 82 10 3 33 Regions Visited 26 Branch Regions 14 Pre-discovered Areas 5 | . . 1 . 1 1 . . . . . . . . . . . . . . 2 . . . . . . Known Exits Taken 4 | . . . . . . . . . . . . 1 . 1 . . . . . . . . 1 1 . . Unknown Exits Taken 19 | 1 1 1 1 1 1 1 1 1 1 1 1 . . . 1 1 . . 1 1 1 1 . . 1 . Scrap Searched 11 | . . 1 . 1 . . . . . 1 1 . . . 1 2 . . . 1 1 . 2 . . . Spaces Dug 37 | . . 12 17 . . . . . . . . . . 2 . . 2 . 1 1 . . 1 1 . . Terrain Destroyed 472 | . 63 147 108 . . . . 8 . 12 . . . 22 . . 2 . 3 4 . 87 12 4 . . Melee . | . . . . . . . . . . . . . . . . . . . . . . . . . . . Projectile 54 | . . . . . . . . . . . . . . 19 . . 2 . 3 4 . 17 7 2 . . AOE 416 | . 63 147 108 . . . . 8 . 12 . . . 3 . . . . . . . 70 5 . . . Terrain Rammed . | . . . . . . . . . . . . . . . . . . . . . . . . . . . Walls Destroyed . | . . . . . . . . . . . . . . . . . . . . . . . . . . . Machines Disabled . | . . . . . . . . . . . . . . . . . . . . . . . . . . . Actions | -11 -10 -10 -9 -9 -9 -8 -8 -8 -7 -7 -7 -6 -6 -5 -5 -5 -4 -4 -4 -4 -4 -4 -3 -3 -2 -2 --------- Run | Scr Mat Min Mat Min Exi Min Mat Sto Fac Low Low Fac DSF Fac Upp Upp Fac Was Fac Upp Upp War Pro Res Res Tes Total 20733 | 67 606 633 376 861 893 118 2774 1442 955 1226 51 7 267 3354 981 605 547 164 730 669 336 1795 510 425 94 247 Wait 5104 | 1 61 123 25 219 84 10 1392 426 221 80 . . 85 1152 38 38 113 11 208 22 49 675 1 68 . 2 Move 14545 | 50 465 493 310 590 796 103 1297 943 696 1079 51 4 154 1978 921 541 417 121 492 640 280 1041 475 321 85 202 Hop 67 | . . 1 1 . . . 21 21 4 5 . . 1 . 2 . 1 . 4 1 1 1 . 3 . . Pick Up 169 | 10 17 1 8 13 6 1 8 9 4 3 . . 7 28 2 2 4 1 6 . 2 15 3 5 4 10 Fast Attach 59 | . 1 . . . . . 1 2 1 1 . . . 22 5 2 4 . 4 . 2 8 . 4 2 . Attach 119 | 6 10 2 6 9 . 1 3 1 3 2 . 3 1 21 1 . 5 4 4 . 1 12 4 7 3 10 Detach 16 | . 3 . . 1 . . . . . . . . 2 2 . . 1 2 . 1 . 1 . 2 . 1 Swap 36 | . 4 . . 2 1 . 3 4 3 5 . . 4 4 . . . 1 . . . 5 . . . . Drop 95 | . 6 1 5 5 6 1 6 10 2 1 . . 10 17 1 2 1 . 5 1 1 9 1 2 . 2 Fire 425 | . 35 12 21 21 . . 26 26 21 20 . . . 106 11 18 1 24 7 4 . 28 26 11 . 7 Melee 61 | . . . . . . . 17 . . 30 . . . 14 . . . . . . . . . . . . Ram 16 | . 4 . . . . . . . . . . . . . . . . . . . . . . . . 12 Kick 8 | . . . . 1 . 1 . . . . . . . 4 . . . . . . . . . 2 . . Crush 1 | . . . . . . . . . . . . . . . . . . . . . . . . . . 1 Escape Stasis 3 | . . . . . . . . . . . . . 3 . . . . . . . . . . . . . Rewire 9 | . . . . . . 1 . . . . . . . 6 . 2 . . . . . . . . . . Trap . | . . . . . . . . . . . . . . . . . . . . . . . . . . . Miscellaneous . | . . . . . . . . . . . . . . . . . . . . . . . . . . . Route ------- -11/Scrapyard -10/Materials (discovered 3 exits: *Mat x2 / [*Min]) -10/Mines (discovered 2 exits: *Mat x2) -9/Materials -9/Mines (discovered 3 exits: *Mat x2 / *Exi) -9/Exiles (discovered 2 exits: [*Min x2]) -8/Mines -8/Materials -8/Storage (discovered 2 exits: *Fac / [*Rec]) -7/Factory -7/Lower Caves -7/Lower Caves -6/Factory (discovered 4 exits: Fac x2 / Low / DSF) -6/DSF -5/Factory (discovered 3 exits: [*Fac] / *Upp x2) -5/Upper Caves -5/Upper Caves -4/Factory (discovered 3 exits: Res x2 / Ext) -4/Waste -4/Factory -4/Upper Caves -4/Upper Caves (discovered 2 exits: Res / *War) -4/Warlord -3/Proximity Caves -3/Research (discovered 5 exits: *Res x2 / Arm / Qua x2) -2/Research -2/Testing History --------- Turn | Location | Event 21 | -11/Scrapyard | Discovered new exit (range 16) 59 | -11/Scrapyard | Entered Materials 259 | -10/Materials | Lost 3 parts (1p2n) 278 | -10/Materials | Discovered new exit (range 12) 308 | -10/Materials | Build established: Mutant 314 | -10/Materials | Repaired Weapon Shielding 362 | -10/Materials | Core integrity fell below 50% 471 | -10/Materials | Discovered new exit (range 9) 631 | -10/Materials | Discovered new exit (range 11) 657 | -10/Materials | Entered Mines 680 | -10/Mines | Discovered new exit (range 14) 681 | -10/Mines | Discovered new exit (range 4) 682 | -10/Mines | Met a Derelict testing a Signal Generator 693 | -10/Mines | Found Signal Generator 798 | -10/Mines | Learned location of Zion (-7) 808 | -10/Mines | Assisted by bots powering up and referring to "LRC-V3" 1071 | -10/Mines | Assembled infested the area 1076 | -10/Mines | Assisted by a Guerilla fighting off Assembled 1244 | -10/Mines | Core integrity fell below 20% 1276 | -10/Mines | Lost 6 parts (1p2n1u2w) 1301 | -10/Mines | Entered Materials 1301 | -9/Materials | Evolved 2 slots: Propulsion x1, Utility x1 1532 | -9/Materials | Lost 5 parts (3n1u1w) 1533 | -9/Materials | Discovered new exit (range 11) 1544 | -9/Materials | Entered Mines 1546 | -9/Mines | Met a Derelict shopkeep closing up shop 1656 | -9/Mines | Learned Materials emergency access door positions 1736 | -9/Mines | Learned location of Storage (-8) 1918 | -9/Mines | Build established: Scavenger-Mutant 2249 | -9/Mines | Discovered new exit (range 10) 2470 | -9/Mines | Discovered new exit (range 6) 2509 | -9/Mines | Deemed a non-threat by the Exiles lab entrance 2509 | -9/Mines | Discovered new exit (range 5) 2533 | -9/Mines | Entered Exiles 2533 | -9/Exiles | Accompanied by 2 allies 2556 | -9/Exiles | Discovered new exit (range 14) 2563 | -9/Exiles | Led the pair of lost Derelicts to a safe place 2588 | -9/Exiles | Met 8R-AWN 2648 | -9/Exiles | Met EX-HEX 2723 | -9/Exiles | Met EX-DEC 2751 | -9/Exiles | Visited The Gauntlet 2985 | -9/Exiles | Discovered new exit (range 14) 3141 | -9/Exiles | Met EX-BIN 3155 | -9/Exiles | Aligned with FarCom system 3156 | -9/Exiles | Given EX-Vault access code 3222 | -9/Exiles | Opened EX-Vault 3266 | -9/Exiles | Warned to stay clear of 0b10 Research branches 3489 | -9/Exiles | Found Flying Fortress v7 3723 | -9/Exiles | Left Exiles lab with Flying Fortress v7 3723 | -9/Exiles | Entered Mines 3773 | -8/Mines | Discovered new exit (range 9) 3862 | -8/Mines | Entered Materials 3862 | -8/Materials | Evolved 2 slots: Propulsion x1, Utility x1 3933 | -8/Materials | Discovered new exit (range 16) 4172 | -8/Materials | Build established: Mutant 6021 | -8/Materials | Entered Storage 6050 | -8/Storage | Met 01-MTF 6321 | -8/Storage | Discovered new exit (range 5) 6641 | -8/Storage | Discovered new exit (range 15) 6821 | -8/Storage | First assault squad dispatched 7025 | -8/Storage | Entered Factory 7025 | -7/Factory | Evolved 2 slots: Utility x2 7425 | -7/Factory | Search patrols dispatched 7653 | -7/Factory | Discovered new exit (range 9) 7664 | -7/Factory | Entered Lower Caves 7837 | -7/Lower Caves | Attacked by a delusional Derelict stockpiling parts 8209 | -7/Lower Caves | Spotted B-75 Beast 8311 | -7/Lower Caves | Learned 8 Factory zone layouts 8376 | -7/Lower Caves | Discovered new exit (range 15) 8435 | -7/Lower Caves | Entered another Lower Caves area 8455 | -7/Lower Caves | Discovered new exit (range 10) 8461 | -7/Lower Caves | Entered Factory 8461 | -6/Factory | Evolved 2 slots: Power x1, Utility x1 8462 | -6/Factory | Identified exit to Factory 8462 | -6/Factory | Identified exit to Lower Caves 8466 | -6/Factory | Identified exit to DSF 8467 | -6/Factory | Entered DSF 8557 | -6/DSF | Additional patrols routed to DSF 8642 | -6/DSF | Discovered exit to Factory (range 16) 8654 | -6/DSF | Entered Factory 8654 | -5/Factory | Evolved 2 slots: Propulsion x1, Utility x1 8677 | -5/Factory | Lost 6 parts (2p1n1u2w) 8855 | -5/Factory | Fabricated Lgt. Quantum Reactor (x2) 8935 | -5/Factory | Fabricated Hacking Suite? 8990 | -5/Factory | Build established: Hacker-Mutant 9707 | -5/Factory | Fabricated Lrn. Sensor Array (x1) 10048 | -5/Factory | Fabricated G-50 Soldier (x3) 10127 | -5/Factory | Discovered new exit (range 15) 10760 | -5/Factory | Repaired Med. Matter Pod 10835 | -5/Factory | Repaired Lgt. Quantum Reactor 10880 | -5/Factory | Repaired Imp. Shield Generator 10926 | -5/Factory | Repaired Energy Filter 10983 | -5/Factory | Repaired Wave Gun 11210 | -5/Factory | Spotted B-75 Beast 11407 | -5/Factory | System corruption reached 10% 11446 | -5/Factory | Lost 6 parts (2n3u1w) 11499 | -5/Factory | Identified exit to Upper Caves 11988 | -5/Factory | Lost 4 parts (1p1n1u1w) 12146 | -5/Factory | Lost 5 parts (1p2n2w) 12169 | -5/Factory | Entered Upper Caves 12196 | -5/Upper Caves | Learned location of 2 exits from Factory 12582 | -5/Upper Caves | Discovered new exit (range 14) 12598 | -5/Upper Caves | Learned location of 1 exit from Factory 12618 | -5/Upper Caves | Entered another Upper Caves area 12760 | -5/Upper Caves | Discovered new exit (range 10) 12988 | -5/Upper Caves | Spotted B-75 Beast 13038 | -5/Upper Caves | Core integrity fell below 50% 13078 | -5/Upper Caves | Lost 6 parts (1p2n1u2w) 13231 | -5/Upper Caves | Entered Factory 13231 | -4/Factory | Evolved 2 slots: Utility x2 13232 | -4/Factory | Identified exit to Extension 13232 | -4/Factory | Identified exit to Research 13555 | -4/Factory | Sucked down chute 13555 | -4/Factory | Entered Waste 13556 | -4/Waste | Met a frightened Derelict 13563 | -4/Waste | Spotted C-40 Crusher 13570 | -4/Waste | EMP discharged 13578 | -4/Waste | Destroyed C-40 Crusher 13580 | -4/Waste | Spotted C-40 Crusher 13580 | -4/Waste | Spotted C-40 Crusher 13586 | -4/Waste | Spotted C-40 Crusher 13618 | -4/Waste | Crushed by Compactor (1 part destroyed, 1 dropped) 13650 | -4/Waste | Spotted C-40 Crusher 13661 | -4/Waste | Discovered new exit (range 10) 13664 | -4/Waste | Entered Factory 13671 | -4/Factory | Discovered new exit (range 4) 13700 | -4/Factory | System corruption reached 10% 13924 | -4/Factory | Repaired Corrupted Adv. Cloaking Device 14080 | -4/Factory | Entered Upper Caves 14087 | -4/Upper Caves | Encountered a Warlord checkpoint 14090 | -4/Upper Caves | Learned location of 1 exit from Research 14146 | -4/Upper Caves | Learned location of 1 exit from Research 14146 | -4/Upper Caves | Learned 8 Factory zone layouts 14146 | -4/Upper Caves | Learned 8 Research zone layouts 14146 | -4/Upper Caves | Learned Extension stockpile data 14146 | -4/Upper Caves | Learned Extension garrison access intel 14146 | -4/Upper Caves | Learned Armory garrison access intel 14262 | -4/Upper Caves | Attracted the attention of an 0b10 outpost 14335 | -4/Upper Caves | Discovered new exit (range 6) 14337 | -4/Upper Caves | Entered another Upper Caves area 14365 | -4/Upper Caves | Lost 3 parts (1p1n1u) 14455 | -4/Upper Caves | Learned Research security intel 14493 | -4/Upper Caves | Discovered new exit (range 10) 14497 | -4/Upper Caves | Entered Warlord 14519 | -4/Warlord | System corruption cleaned by Quarantine Array 15200 | -4/Warlord | Visited the Vortex Lab 15205 | -4/Warlord | Warlord's base attacked by MAIN.C 15207 | -4/Warlord | Found Prototype Launcher 15208 | -4/Warlord | Identified Vortex Catalyst Activator 15210 | -4/Warlord | Found Prototype Energy Gun 15212 | -4/Warlord | Identified Vortex Shotgun 15213 | -4/Warlord | Found Vortex Shotgun 15217 | -4/Warlord | Found Vortex Shotgun 15508 | -4/Warlord | Warlord forces counterattacked 15525 | -4/Warlord | Spotted Executioner 15573 | -4/Warlord | Spotted Striker 15754 | -4/Warlord | Met Warlord 15855 | -4/Warlord | Found Vortex Shotgun 15880 | -4/Warlord | Warlord base infiltrated, sounded retreat 15916 | -4/Warlord | Destroyed 7 combat bots 16025 | -4/Warlord | Found Prototype Processor 16026 | -4/Warlord | Identified Exp. Core Analyzer 16087 | -4/Warlord | Discovered new exit (range 8) 16095 | -4/Warlord | Entered Proximity Caves 16288 | -3/Proximity Caves | Build established: Scavenger-Mutant 16288 | -3/Proximity Caves | Spotted B-86 Titan 16433 | -3/Proximity Caves | Attracted the attention of an 0b10 checkpoint 16665 | -3/Proximity Caves | Core integrity fell below 50% 16671 | -3/Proximity Caves | Discovered exit to Research (range 13) 16677 | -3/Proximity Caves | Entered Research 16677 | -3/Research | Evolved 2 slots: Utility x2 16678 | -3/Research | Identified exit to Armory 16679 | -3/Research | Identified exit to Research 16679 | -3/Research | Identified exit to Quarantine 16703 | -3/Research | Lost 9 parts (1p3n3u2w) 16742 | -3/Research | Discovered exit to Research (range 14) 16773 | -3/Research | Found Unknown Device 16774 | -3/Research | Identified Quantum Capacitor 16985 | -3/Research | Build established: Hacker-Mutant 16987 | -3/Research | Entered another Research area 16987 | -2/Research | Warlord forces began assault on 0b10 16987 | -2/Research | Evolved 2 slots: Propulsion x1, Utility x1 16993 | -2/Research | Discovered new exit (range 4) 16999 | -2/Research | Lost 7 parts (2n4u1w) 17097 | -2/Research | Research machine network offline 17099 | -2/Research | Entered Testing 17100 | -2/Testing | Maximum security lockdown engaged 17318 | -2/Testing | Core integrity fell below 50% 17340 | -2/Testing | Lost 9 parts (2p2n3u2w) 17354 | -2/Testing | Core integrity fell below 20% 17357 | -2/Testing | Spotted Investigator 17362 | -2/Testing | Destroyed by S-43 Plague with Heavy Machine Gun Last Messages --------------- 17341_ Adv. Hacking Suite blown off. 17341_ Broken Imp. System Guard blown off. 17341_ E-15 Imp destroyed. 17356_ C-30 ARC bursts open, deploying its payload. 17356_ G-73 Enforcer unfolds itself. 17356_ L-61 Swordsman unfolds itself. 17356_ E-15 Imp unfolds itself. 17356_ Investigator unfolds itself. 17356_ C-30 ARC bursts open, deploying its payload. 17356_ G-73 Enforcer unfolds itself. 17356_ B-74 Champion unfolds itself. 17356_ G-73 Enforcer unfolds itself. 17356_ B-74 Champion unfolds itself. 17356_ I-47 Archangel unfolds itself. 17356_ C-30 ARC bursts open, deploying its payload. 17356_ G-73 Enforcer unfolds itself. 17357_ Investigator: "PRIMARY THREAT IDENTIFIED. CONTAINMENT PROTOCOL APPLICABLE." [Achievement: 10k Club] [Achievement: 20k Club] Map ----- +----------------------------------------------------+ | | | | | | | | | | | ????????####?????????????????????????????????????? | | ????????= = #????????????????????????????????????? | | ???????? #????????????????????????????????????? | | ?????????T" ?????????????????????????????????????? | | ????????? ?????????????????????????????????????? | | ??#+#???##+##????????????????????????????????????? | | ### ##### #????????????????????????????????????? | | ! #????????????????????????????????????? | | ###+##### #????????????????????????????????????? | | #??## ##????????????????????????????????????? | | #???#!#?????????????????????????????????????? | | """ #???#%######+####???????????????????????????? | | """ #???#/ #???????????????????????????? | | """ #???# #???????????????????????????? | | #???# #???????????????????????????? | | #+######## #???????????????????????????? | | """ #???????????????????????????? | | s """ #???????????????????????????? | | ### g gs """ ###############?????????????? | | ??# gg l l """ #?????????????? | | ??# b g s"""e @ #?????????????? | | ??# ggl glbs #?????????????? | | ??# """g""" bg #?????????????? | | ??# """ """ g####+######+##### #?????????????? | | ??# """ """ci#?????????????????? #?????????????? | | ### """ """gg#????????????????????#?????????????? | | # """ """gg#??????????????????????????????????? | | # """ """gg#??????????????????????????????????? | | + """ """ll#??????????????????????????????????? | | # """ """gg#??????????????????????????????????? | | " """ """gg#??????????????????w???????????????? | | # "el#??????????????????????????????????? | | ### """ """" ###????????????????????????????????? | | ### """ """ ???????????????????????????????? | | ! # """ ""? ????????????????????????????????? | | + """ """ ?????????????????????????????????? | | " # """ """ ?????????????????????????????????? | | " # """ """ #??????????????????????????????????? | | ### """ """ #??????????????????????????????????? | | # """ """ #??????????????????????????????????? | | + """ """ #??????????????????????????????????? | | # #??????????????????????????????????? | | # #??????????????????????????????????? | | ?######### #??????????????????????????????????? | | ?????????# #????" ????????????????????????????? | +----------------------------------------------------+ Best States ------------- Heat Dissipation 100 Coolant Potential 200 Energy Generation 57 Energy Capacity 920 Matter Stores 400 Matter Capacity 550 Sight Range 16 Robot Scan Range 18 Terrain Scan Density 10 Jamming Range 14 Power Amplification 30 Additional Mass Support 9 Base Temperature (-) 150 Corruption Containment 12 Corruption Block 14 Armor Coverage 300 Resistance: TH 10 Weapon Shielding 66 Point Defense Rating 320 Evasion (%) 72 Targeting Accuracy 8 Target Analysis 5 Core Analysis 8 Recoil Reduction 4 Matter Filtering 30 Energy Filtering 30 Particle Charging 20 Offensive Hacking 38 Defensive Hacking 20 Item Schematics ----------------- Rocket Launcher | -9/Materials | Scanalyzed Med. Laser | -9/Materials | Scanalyzed Targeting Computer | -9/Materials | Scanalyzed Hacking Suite | -8/Materials | Hacked Adv. Hacking Suite | -5/Factory | Hacked Dispersion Rifle | -5/Factory | Hacked Field Propulsion Array | -4/Factory | Scanalyzed Adv. Matter Compressor | -4/Factory | Extracted Imp. Force Booster | -4/Factory | Extracted Huge Storage Unit | -4/Factory | Extracted Adv. Power Amplifier | -4/Factory | Scanalyzed Robot Schematics ------------------ None Fabricated ------------ Lgt. Quantum Reactor | x2 | -5/Factory | Preloaded Hacking Suite | x1 | -5/Factory Lrn. Sensor Array | x1 | -5/Factory | Preloaded G-50 Soldier | x3 | -5/Factory | Preloaded Alien Tech Used ----------------- None Achievements -------------- 10k Club 20k Club A Powerful Ally? Brute Force Charge!!! Crack Shot Dangerous Findings Explorer Hunted I'm Back, Baby! Just What I Needed My Command Is Your Wish No Signal Oops Please Form A Line Power Corrupts Respectable Loadout Ride The Lightning Serviceable Loadout Significant Disruption Streaker Total Silence True Hacker Challenges ------------ None Game ------ Seed StealthWardroneMatrix Manual? 0 Play Time 08:43:03 Cumulative 23.6 hours Start 2022.06.27 @ 16:09:53 End 2022.06.29 @ 17:39:24 Sessions 5 Manual Loads 0 Difficulty Rogue Special Mode None Game No. 5 Rogue 5 Adventurer 0 Explorer 0 Win Type - Total 0 Types 0/0/0/0/0/0/0/0/0 Lore% 17 Gallery% 18 Achievement% 18 Wizard Run 0 Options --------- ASCII 0 Keyboard 0 Movement Numpad Keybinds 0 Fullscreen 1 Font 24/Terminus Map View 76x50 Tactical HUD 1 Map Filters NONE Filters NONE Steam 1 RUN: 4c3f2d17-a3a2-4390-83ed-457ab7c61200